Cogmind - Beta 15 @@@ ROGUE MODE // 2025.09.12 @ 18:45:34 Player: konomiyu Result: Destroyed by D-53 Grenadier with Mini Grenade Launcher Performance ------------- Evolutions (0) 0 Regions Visited (2) 400 Robots Destroyed (32) 160 Value Destroyed (813) 813 Prototype IDs (2) 40 Alien Tech Used (0) 0 Bonus (0) 0 TOTAL SCORE: 1413 Bonus ------- None Cogmind --------- Core Integrity 0/250 Matter 217/300 Energy 100/100 System Corruption 3% Temperature Cool (0) Movement Treading (160) Location -10/Mines Parts ------- > --- POWER (1) -------- (None) > --- PROPULSION (2) --- Light Treads Light Treads > --- UTILITY (2) ------ Large Storage Unit > --- WEAPON (2) ------- Assault Rifle Grenade Launcher > --- INVENTORY (15) --- Ion Engine Light Treads Light Treads Seismic Detector Hacking Suite EM Pulse Gun Assault Rifle Assault Rifle Assault Rifle Assault Rifle Datajack Mining Laser Peak State ------------ > --- POWER ------------ Light Ion Engine > --- PROPULSION ------- Light Treads Light Treads > --- UTILITY ---------- Large Storage Unit Hacking Suite > --- WEAPON ----------- Light Assault Rifle Grenade Launcher > --- INVENTORY -------- Aluminum Leg Aluminum Leg Seismic Detector Hacking Suite EM Pulse Gun Light Assault Rifle Light Assault Rifle Light Assault Rifle Datajack [Rating: 10] Favorites ----------- Power Ion Engine Engine Ion Engine Propulsion Light Treads Treads Light Treads Leg Aluminum Leg Utility Large Storage Unit Device Seismic Detector Storage Large Storage Unit Hackware Hacking Suite Weapon Assault Rifle Energy Gun EM Pulse Gun Ballistic Gun Assault Rifle Launcher Grenade Launcher Special Melee Weapon Datajack Build | -11 -10 -10 ------- Run | Yrd Mat Min Slots Evolved . | . . . Power . | . . . Propulsion . | . . . Utility . | . . . Weapon . | . . . Parts Attached 23 | 5 16 2 Power 4 | . 3 1 Engine 4 | . 3 1 Core . | . . . Reactor . | . . . Propulsion 5 | 2 2 1 Treads 4 | 2 1 1 Leg 1 | . 1 . Wheel . | . . . Hover . | . . . Flight . | . . . Utility 5 | 1 4 . Device 1 | . 1 . Storage 3 | 1 2 . Processor . | . . . Hackware 1 | . 1 . Protection . | . . . Artifact . | . . . Weapon 9 | 2 7 . Energy Gun 1 | 1 . . Energy Cannon . | . . . Ballistic Gun 6 | 1 5 . Ballistic Cannon . | . . . Launcher 1 | . 1 . Special Weapon . | . . . Impact Weapon . | . . . Slashing Weapon . | . . . Piercing Weapon . | . . . Special Melee Weapon 1 | . 1 . Unidentified Prototypes . | . . . Parts Lost 7 | . 3 4 Power 4 | . 2 2 Propulsion 2 | . 1 1 Utility 1 | . . 1 Weapon . | . . . Highest Loss Streak 1 | . 1 1 To Critical Strikes . | . . . Average Backups 10 | 3 9 12 Power 1 | 1 1 1 Propulsion 2 | 1 2 2 Utility 1 | . 1 2 Weapon 4 | 1 4 6 Tool/Special . | . . . Unused Backups 10 | . 4 6 Power 2 | . 1 1 Propulsion 3 | . 1 2 Utility 1 | . . 1 Weapon 4 | . 2 2 Tool/Special . | . . . Average Slot Usage (%) 93 | . 93 93 Engine 11 | . 10 13 Treads 27 | . 26 27 Device 1 | . 2 . Storage 14 | . 14 14 Hackware 9 | . 9 9 Ballistic Gun 24 | . 24 27 Launcher 1 | . 1 . Special Melee Weapon 1 | . 1 . Peak Build Rating 10 | 5 10 10 Average Rating 8 | 3 8 8 On Entrance 5 | . 5 10 Naked Turns . | . . . Heaviest Build 30 | 8 30 29 Greatest Support 40 | 40 40 40 Greatest Overweight (x) 2 | 2 1 1 Average Overweight (x) . | . . . Largest Inventory Capacity 15 | 8 15 15 Average Capacity 14 | 7 14 15 Most Carried 14 | 7 14 14 Average Carried 10 | 4 10 12 Final Capacity 15 | 8 15 15 Final Carried 14 | 5 14 12 Class Distribution -------------------- 100% | Mutant Dominant Class ---------------- Mutant | -10/Materials Mutant | -10/Mines Resources | -11 -10 -10 ----------- Run | Yrd Mat Min Matter Collected 884 | 227 511 146 Remotely . | . . . Salvage Created 980 | . 835 145 Parts 59 | . 56 3 Haulers Intercepted 2 | . 2 . Recyclers Shooed . | . . . Parts Field Recycled . | . . . Retrieved Matter . | . . . Parts Self-Destructed . | . . . Prevented . | . . . Kills | -11 -10 -10 ------- Run | Yrd Mat Min Combat Hostiles Destroyed 29 | . 19 10 Guns 21 | . 12 9 AOE 8 | . 7 1 Classes Destroyed 8 | . 6 2 Builder 1 | . 1 . Hauler 2 | . 2 . Operator 3 | . 3 . Watcher 3 | . 3 . Swarmer 6 | . 3 3 Grunt 16 | . 16 . Sentry 1 | . . 1 Assembled 6 | . . 6 Best Kill Streak 7 | . 7 3 Combat Bots Only 5 | . 5 3 Max Kills in Single Turn 3 | . 3 1 Gunslinging . | . . . Exploded 1 | . 1 1 Melee . | . . . Uniques/NPCs Destroyed . | . . . Combat | -11 -10 -10 -------- Run | Yrd Mat Min Hostile Shots Fired 138 | . 92 46 Missed 40 | . 24 16 Hits 98 | . 68 30 Melee 7 | . . 7 Projectile 91 | . 68 23 AOE 1 | . . 1 Critical Strikes 2 | . 2 . Damage Taken 1255 | . 792 463 Core 267 | . 185 82 Absorbed by Shields . | . . . Regen/Repaired (Parts) 1 | . 1 . Core Remaining (%) 100 | 100 . . Volleys Fired 111 | . 82 29 Largest 2 | . 2 2 Hottest 60 | . 60 50 Shots Fired 195 | . 140 55 Gun 179 | . 128 51 Cannon . | . . . Launcher 16 | . 12 4 Special . | . . . Kinetic 166 | . 115 51 Thermal . | . . . Explosive 16 | . 12 4 Electromagnetic 13 | . 13 . Robot Hit Streak 11 | . 11 5 Robot Miss Streak 5 | . 5 5 Penetration Max . | . . . Secondary Targets 2 | . 1 1 Max Gunslinging Chain 1 | . 1 1 Shots Hit Robots 110 | . 84 26 Core Hits 78 | . 59 19 Critical Kills . | . . . Critical Parts Destroyed 1 | . . 1 Critical Strikes 1 | . . 1 Destroy 1 | . . 1 Melee Attacks 4 | . 4 . Impact . | . . . Slashing . | . . . Piercing . | . . . Sneak Attacks 3 | . 3 . Combat Hostiles 1 | . 1 . Follow-up Attacks . | . . . Damage Inflicted 1823 | . 1443 380 Guns 1150 | . 848 302 Cannons . | . . . Explosions 673 | . 595 78 Melee . | . . . Ramming . | . . . Kinetic 1031 | . 729 302 Thermal 33 | . 33 . Explosive 640 | . 562 78 Electromagnetic 119 | . 119 . Impact . | . . . Slashing . | . . . Piercing . | . . . Highest Corruption 3 | . . 3 Average Corruption 3 | . . 3 Corruption Purged . | . . . Corruption Blocked . | . . . Effects 2 | . . 2 Matter Fused 1 | . . 1 Heat Flow Errors 1 | . . 1 Overload Shots . | . . . Overflow Damage . | . . . Projectiles . | . . . Explosions . | . . . Melee . | . . . Knockbacks . | . . . Impact . | . . . Kinetic . | . . . Secondary . | . . . Self-Inflicted Damage . | . . . Shots . | . . . Rammed . | . . . Targets Rammed . | . . . Kicked . | . . . Crushed . | . . . Highest Temperature 103 | . 86 103 Average Temperature 28 | . 23 67 Received Heat Transfer 432 | . 423 9 Siege Activations . | . . . Martial Activations . | . . . Shielding Activations . | . . . Robots Disrupted . | . . . Combat Hostiles . | . . . Robots Corrupted . | . . . Combat Hostiles . | . . . Parts Fried . | . . . Impact Corruptions . | . . . Robots Melted . | . . . Combat Hostiles . | . . . Parts Melted . | . . . Heat Transferred 50 | . 50 . Parts Sabotaged . | . . . Parts Stolen . | . . . Parts Stripped . | . . . Power Chain Reactions 1 | . 1 . Alert | -11 -10 -10 ------- Run | Yrd Mat Min Maximum Alert Level 1 | . 1 . Low Security (%) 93 | 100 91 100 Level 1 6 | . 8 . Level 2 . | . . . Level 3 . | . . . Level 4 . | . . . Level 5 . | . . . High Security . | . . . Max Security . | . . . Peak Influence 230 | . 230 163 Initial 63 | . . 63 Average 92 | . 102 67 Influence Increases 747 | . 605 142 Destroy 0b10 Robot/C 460 | . 380 80 Destroy 0b10 Robot/NC 45 | . 45 . Destroy Leader 110 | . 100 10 Successful Hack 12 | . 12 . Disable Machine 30 | . . 30 Destroy Structure 75 | . 53 22 Partial Spotted 15 | . 15 . Influence Decreases 714 | . 441 273 Entered New Map 101 | . . 101 Time Decay 544 | . 411 133 Lost Part 69 | . 30 39 Squads Dispatched 5 | . 5 . Investigation 1 | . 1 . Extermination . | . . . Reinforcement 4 | . 4 . Assault . | . . . Garrison . | . . . Intercept . | . . . Searches Triggered . | . . . Construction Impeded . | . . . Haulers Reinforced . | . . . Active Scanning Responses . | . . . Cargo Convoy Interrupts . | . . . Stealth | -11 -10 -10 --------- Run | Yrd Mat Min Distress Signals 1 | . 1 . Communications Jammed . | . . . Distress Signals . | . . . Times Spotted 46 | . 34 12 Peak Tracking Total 5 | . 5 3 Tactical Retreats . | . . . Traps | -11 -10 -10 ------- Run | Yrd Mat Min Traps Triggered 1 | . 1 . Indirectly . | . . . Trap Hack Attempts . | . . . Triggered . | . . . Disarmed . | . . . Reprogrammed . | . . . Reused . | . . . Traps Extracted . | . . . Installed . | . . . Triggered . | . . . Machines | -11 -10 -10 ---------- Run | Yrd Mat Min Machines Disabled 4 | . . 4 Max in Single Turn 2 | . . 2 Machines Repaired . | . . . Machines Dismantled . | . . . Machines Sabotaged . | . . . Overloaded Fab Kills . | . . . Hacking | -11 -10 -10 --------- Run | Yrd Mat Min Machines Accessed 4 | . 4 . Terminals 2 | . 2 . Fabricators . | . . . Repair Stations 1 | . 1 . Recycling Units 1 | . 1 . Scanalyzers . | . . . Garrison Access . | . . . Total Hacks 9 | . 9 . Successful 6 | . 6 . Failed 3 | . 3 . Catastrophic . | . . . Database Lockouts . | . . . Manual 8 | . 8 . Terminals 6 | . 6 . Fabricators . | . . . Repair Stations 2 | . 2 . Recycling Units 1 | . 1 . Scanalyzers . | . . . Garrison Access . | . . . Terminal Hacks 2 | . 2 . Robot Analysis 1 | . 1 . Prototype ID Bank 1 | . 1 . Fabricator Hacks . | . . . Repair Station Hacks 2 | . 2 . Scan Component 1 | . 1 . Repair 1 | . 1 . Recycling Unit Hacks . | . . . Scanalyzer . | . . . Garrison Access Hacks . | . . . Unauthorized Hacks 2 | . 2 . Terminals 1 | . 1 . Operators 1 | . 1 . Fabricators . | . . . Repair Stations . | . . . Recycling Units 1 | . 1 . Monitor 1 | . 1 . Scanalyzers . | . . . Garrison Access . | . . . Data Cores Recovered . | . . . Used . | . . . Hacking Detections 3 | . 3 . Full Trace Events 1 | . 1 . Feedback Events . | . . . Feedback Blocked . | . . . Robot Schematics Acquired . | . . . Robots Built . | . . . Authchips . | . . . Time . | . . . Total Robot Build Rating . | . . . Part Schematics Acquired . | . . . Parts Built . | . . . Authchips . | . . . Time . | . . . Total Part Build Rating . | . . . Parts Repaired 1 | . 1 . Time 53 | . 53 . Parts Recycled . | . . . Recycled Matter . | . . . Retrieved Matter . | . . . Retrieved Components . | . . . Parts Scanalyzed . | . . . Part Schematics Acquired . | . . . Parts Damaged . | . . . Bothacking | -11 -10 -10 ------------ Run | Yrd Mat Min Used RIF Installer . | . . . Robots Hacked 2 | . 2 . Non-combat 1 | . 1 . Combat 1 | . 1 . Robot Hacks Applied 2 | . 2 . parse_system 1 | . 1 . no_distress 1 | . 1 . Relay Couplers Released . | . . . Fabnet Peak Effective % . | . . . Robots Rewired . | . . . Allies Hacked . | . . . Hacks Repelled . | . . . Allies | -11 -10 -10 -------- Run | Yrd Mat Min Total Allies . | . . . Largest Group . | . . . Highest-Rated Group . | . . . Highest-Rated Ally . | . . . Total Orders . | . . . Ally Attacks . | . . . Total Damage . | . . . Kills . | . . . Allies Corrupted . | . . . Allies Melted . | . . . Intel | -11 -10 -10 ------- Run | Yrd Mat Min Active Infowar (turns) 201 | . 201 . Seismic 201 | . 201 . Robot Analysis Total 1 | . 1 . Derelict Logs Recovered . | . . . Drone Launches . | . . . Drone Recoveries . | . . . Exploration | -11 -10 -10 ------------- Run | Yrd Mat Min Turns Passed 1773 | 63 1381 329 Spaces Moved 766 | 35 584 147 Core 10 | 10 . . Treads 756 | 25 584 147 Legs . | . . . Wheels . | . . . Hover . | . . . Flight . | . . . Fastest Speed 50 | 50 160 160 Average Speed 162 | 140 164 160 Slowest Speed 240 | 160 240 240 Overloaded Moves . | . . . Propulsion Burnouts . | . . . Robots Hopped . | . . . Potential Cave-ins . | . . . Cave-ins Triggered . | . . . Exploration Rate (%) 45 | 3 89 43 Regions Visited 2 Branch Regions 1 Pre-discovered Areas . | . . . Known Exits Taken . | . . . Unknown Exits Taken 2 | 1 1 . Scrap Searched . | . . . Spaces Dug 6 | . 6 . Terrain Destroyed 96 | . 73 23 Melee . | . . . Projectile . | . . . AOE 96 | . 73 23 Terrain Rammed . | . . . Walls Destroyed . | . . . Machines Disabled . | . . . Actions | -11 -10 -10 --------- Run | Yrd Mat Min Total 1110 | 49 876 185 Wait 157 | . 151 6 Move 764 | 34 583 147 Hop . | . . . Pick Up 35 | 10 25 . Fast Attach . | . . . Attach 12 | 5 5 2 Detach . | . . . Swap 17 | . 16 1 Drop 10 | . 10 . Fire 111 | . 82 29 Melee 4 | . 4 . Ram . | . . . Kick . | . . . Crush . | . . . Escape Stasis . | . . . Rewire . | . . . Trap . | . . . Miscellaneous . | . . . Route ------- -11/Scrapyard -10/Materials (discovered 5 exits: [*Mat x3] / [*Min x2]) -10/Mines History --------- Turn | Location | Event 14 | -11/Scrapyard | Discovered new exit (range 15) 64 | -11/Scrapyard | Entered Materials 207 | -10/Materials | Discovered new exit (range 14) 318 | -10/Materials | Build established: Mutant 479 | -10/Materials | Discovered new exit (range 16) 682 | -10/Materials | Discovered new exit (range 16) 944 | -10/Materials | Core integrity fell below 50% 966 | -10/Materials | Discovered new exit (range 16) 1331 | -10/Materials | Repaired Corrupted Hacking Suite 1356 | -10/Materials | Discovered new exit (range 16) 1445 | -10/Materials | Entered Mines 1446 | -10/Mines | Assembled infested the area 1652 | -10/Mines | Core integrity fell below 20% 1774 | -10/Mines | Destroyed by D-53 Grenadier with Mini Grenade Launcher Last Messages --------------- 01536_ as-25929 destroyed. 01550_ Acquired 11 matter. 01582_ Acquired 17 matter. 01607_ Ion Engine destroyed. 01615_ as-84589 destroyed. 01620_ Acquired 15 matter. 01639_ as-13355 destroyed. 01645_ as-23749 destroyed. 01648_ Acquired 11 matter. 01651_ Hacking Suite destroyed. 01651_ System corrupted by crushing effect (+3). 01653_ System corrupted: Heat flow error (+110). 01656_ as-53201 destroyed. 01659_ Acquired 12 matter. 01660_ Acquired 11 matter. 01668_ System corrupted: Matter fused (-8). 01724_ Acquired 17 matter. 01768_ Ion Engine destroyed. 01768_ Machine disabled. 01772_ Y-45 Defender destroyed. Map ----- +----------------------------------------------------+ | | | | | ???????????????????????????????????????????????? | | ???????????????????????????????????????????????? | | ???????????????????????????????????????????????? | | ???????????????????????????????????????????????? | | ???????????????????????????????????????????????? | | ???????????????????????????????????????????????? | | ???????????????????????????????????????????????? | | ???????????????????????????????????????????????? | | ??????????????????????####?????????????????????? | | ?????????????????????## #?????????????????????? | | ????????????????????## #?????????????????????? | | ????????????????????# #?????????????????????? | | ????????????????????# ###?????????????????????? | | ????????????????????# ##??????????????????????? | | ????????????????????# ###????????????????????? | | ?????????############ ##???????????????????? | | ????????## #???????????????????? | | ?????#### #???????????????????? | | ????## ########### ##???????????????????? | | ???## ##????????## ##????????????????????? | | ???# """ ##?????###?# #?????????????????????? | | ???# """ #???# ## # ##????????????????????? | | ???## """ ##??# #????????????????????? | | ????# ### @ #????????????????????? | | ????## ## Y #????????????????????? | | ?????## ##!! ##????????????????????? | | ?????## ###! ##?????????????????????? | | ????## #?# =% #??????????????????????? | | ????# #?## #??????????????????????? | | ????# #?# ## #??????????????????????? | | ????## ##?###?? #??????????????????????? | | ?????# ###??????# #??????????????????????? | | ?????# #????????## #####??????????????????? | | ?????# #??#####??# d ???????????????????? | | ?????# #?## #### #?????????????????????? | | ?????# ### ## #?????????????????????? | | ?????# #??????????????????????? | | ?????# ## #???????????????????????? | | ?????########### ##???????????????????????? | | ???????????????# ##????????????????????????? | | ???????????????## ##?????????????????????????? | | ????????????????### #??????????????????????????? | | ??????????????????# #??????????????????????????? | | ??????????????????# ###????????????????????????? | | ??????????????????# #????????????????????????? | | ??????????????????### #???????? ????????????? | | ????????????????##### ##### ??????????? | | ????????????????# #??????????? | +----------------------------------------------------+ Best States ------------- Heat Dissipation 25 Energy Generation 10 Energy Capacity 250 Matter Stores 300 Matter Capacity 300 Sight Range 16 Terrain Scan Density 10 Evasion (%) 40 Recoil Reduction 2 Offensive Hacking 10 Item Schematics ----------------- None Robot Schematics ------------------ None Fabricated ------------ Nothing Repaired ---------- Hacking Suite | 90% | -10/Materials | Corrupted Alien Tech Used ----------------- None Achievements -------------- None Challenges ------------ None Game ------ Seed LightningSwarmFemtoactuators Manual? 0 Play Time 00:23:38 Cumulative 18.7 hours Start 2025.09.12 @ 18:18:43 End 2025.09.12 @ 18:45:34 Sessions 1 Manual Loads 0 Difficulty Rogue Special Mode None Game No. 23 Rogue 23 Adventurer 0 Explorer 0 Win Type - Total 0 Types 0/0/0/0/0/0/0/0/0/0 Lore% 12 Gallery% 16 Achievement% 20 Wizard Run 0 Options --------- Layout 1 ASCII 0 Keyboard 0 Movement Mouse Keybinds 0 Fullscreen 2 Font 24/Smallcaps Map View 50x35 Zoom Use 0% Tactical HUD 1 Map Filters NONE Filters NONE Steam 1 RUN: c19611f8-daa3-4d11-9c25-f928da800bca